bitfinex-derivatives/quotes_SOLF0:USTF0_20250706
["timestamp","ask_amount","ask_price","bid_price","bid_amount"]
[1751794826089,11.80019011,147.4,147.39,194.0]
[1751794826702,11.80019011,147.4,147.38,2.35491137]
[1751794826901,6.7826,147.4,147.39,194.0]
[1751794827100,11.80006384,147.4,147.39,194.0]
[1751794827797,5.01746384,147.4,147.39,194.0]
[1751794832403,11.80006384,147.4,147.39,194.0]
[1751794834305,6.7826,147.4,147.39,194.0]
[1751794836807,11.75538181,147.4,147.39,194.0]
[1751794837106,6.7826,147.4,147.39,194.0]
[1751794838706,6.7824,147.41,147.39,194.0]
[1751794843413,4.97504284,147.4,147.39,194.0]
[1751794847707,4.97504284,147.4,147.39,200.783]
[1751794847914,4.97504284,147.4,147.39,203.13780789]
[1751794848113,2.35480789,147.45,147.39,196.35480789]
[1751794848313,16.22436747,147.44,147.41,2.35480789]
[1751794848611,4.97042989,147.43,147.42,2.35480789]
[1751794850516,4.97042989,147.43,147.42,9.13650789]
[1751794853016,6.7799,147.46,147.43,6.7808]
[1751794853315,6.7799,147.46,147.44,2.35480789]
[1751794853616,6.7799,147.46,147.45,2.35480789]
[1751794853812,9.28546085,147.46,147.45,2.35480789]
[1751794858622,9.28546085,147.46,147.44,2.35480789]
[1751794858820,6.7799,147.46,147.44,2.35480789]
[1751794860221,6.7795,147.47,147.44,9.13550789]
[1751794860520,2.51285039,147.46,147.44,9.13550789]
[1751794860720,6.7795,147.47,147.45,2.35480789]
[1751794860921,2.51285039,147.46,147.45,2.35480789]
[1751794861323,2.512996,147.46,147.45,2.35480789]
[1751794861922,2.512996,147.46,147.45,9.13510789]
[1751794865026,7.48588546,147.46,147.45,9.13510789]
[1751794866731,4.97288946,147.46,147.45,9.13510789]
[1751794868130,9.48073836,147.52,147.45,2.35480789]
[1751794868330,11.34319896,147.51,147.49,2.35480789]
[1751794868537,11.34319896,147.5,147.49,2.35480789]
[1751794868933,13.69590553,147.5,147.44,45.78]
[1751794869134,2.35397699,147.45,147.41,240.02]
[1751794869634,6.7811,147.44,147.41,246.8019]
[1751794870737,6.7811,147.44,147.41,249.15587699]
[1751794873140,6.7811,147.44,147.41,54.91587699]
[1751794873438,6.7811,147.44,147.42,194.3]
[1751794873741,6.7811,147.44,147.42,203.43557699]
[1751794877440,6.7805,147.45,147.42,203.43557699]
[1751794879832,6.781,147.44,147.42,196.65397699]
[1751794880029,6.781,147.44,147.42,194.3]
[1751794884343,6.781,147.44,147.43,194.24]
[1751794884550,15.58797886,147.44,147.43,194.24]
[1751794884943,15.58797886,147.44,147.41,54.91587699]
[1751794885246,6.781,147.44,147.42,194.22]
[1751794886140,6.7812,147.43,147.41,48.13385385]
[1751794886437,8.81023526,147.42,147.41,45.78]
[1751794886740,8.81023526,147.42,147.41,240.04]
[1751794887144,22.75448628,147.42,147.41,240.04]
[1751794888342,22.75469912,147.42,147.41,45.78]
[1751794888641,22.75469912,147.42,147.41,240.04]
[1751794891250,15.97299912,147.42,147.41,240.04]
[1751794893752,22.75469912,147.42,147.41,240.04]
[1751794894450,22.75469912,147.42,147.41,240.02]
[1751794898853,15.97299912,147.42,147.41,240.02]
[1751794899359,15.97299912,147.42,147.41,242.37453629]
[1751794899558,15.97299912,147.42,147.41,240.02]
[1751794899758,15.97299912,147.42,147.41,240.0]
[1751794903467,22.75469912,147.42,147.41,240.0]
[1751794907264,22.75469912,147.42,147.41,194.22]
[1751794908367,15.97299912,147.42,147.41,194.22]
[1751794909071,13.46431468,147.42,147.41,194.22]
[1751794909467,15.96890498,147.42,147.41,194.22]
[1751794915376,16.38155035,147.42,147.41,194.22]
[1751794923283,13.87696005,147.42,147.41,194.22]
[1751794923583,16.3848802,147.42,147.41,194.22]
[1751794927083,16.3848802,147.42,147.41,201.0021]
[1751794927288,13.87696005,147.42,147.41,201.0021]
[1751794927583,5.06672479,147.42,147.41,203.35636102]
[1751794928578,5.06672479,147.42,147.41,203.35539715]
[1751794928884,5.06672479,147.42,147.41,203.23539715]
[1751794931188,13.87994325,147.42,147.41,203.23539715]
[1751794932388,8.81321846,147.42,147.41,203.23539715]
[1751794932588,13.88237781,147.42,147.41,203.23539715]
[1751794935493,13.88086832,147.42,147.41,203.23539715]
[1751794936391,5.06764986,147.42,147.41,203.23539715]
[1751794938589,6.7799,147.46,147.42,6.7812]
[1751794938788,16.39535005,147.45,147.44,2.35329715]
[1751794940392,16.39535005,147.45,147.44,9.13399715]
[1751794942392,11.32920302,147.45,147.44,9.13399715]
[1751794943591,8.82060769,147.45,147.44,9.13399715]
[1751794944696,8.82060769,147.45,147.44,2.35329715]
[1751794944898,8.82060769,147.45,147.42,2.35329715]
[1751794945199,8.82060769,147.44,147.42,2.35329715]
[1751794945394,6.7805,147.45,147.42,9.13469715]
[1751794945692,8.83627291,147.44,147.42,9.13469715]
[1751794945892,6.7805,147.45,147.42,9.13469715]
[1751794946092,8.83626613,147.44,147.42,9.13469715]
[1751794946399,6.7805,147.45,147.43,2.35329715]
[1751794946597,8.83617047,147.44,147.43,2.35329715]
[1751794946999,13.74018081,147.44,147.43,2.35329715]
[1751794947297,16.25219523,147.44,147.43,2.35329715]
[1751794949196,13.74018081,147.44,147.43,2.35329715]
[1751794949397,16.25375232,147.44,147.43,2.35329715]
[1751794954796,16.25375232,147.44,147.43,9.13449715]
[1751794955204,16.25375232,147.44,147.43,54.95449715]
[1751794955900,13.74018081,147.44,147.43,54.95449715]
[1751794960106,16.25575705,147.44,147.43,54.95449715]
[1751794961212,7.41958658,147.44,147.43,54.95449715]
[1751794962908,4.90401034,147.44,147.43,54.95449715]
[1751794967225,6.7795,147.47,147.44,6.7806]
[1751794967425,16.17033225,147.46,147.45,196.25329715]
[1751794984239,16.16790941,147.46,147.45,196.25329715]
[1751794987241,16.16790941,147.46,147.45,203.03359715]
[1751794989044,16.16790941,147.46,147.45,193.9]
[1751794989232,16.16790941,147.46,147.45,196.25329715]
[1751794989741,16.16790941,147.46,147.45,193.9]
[1751794990142,8.85396596,147.46,147.45,193.9]
[1751794990444,16.1688535,147.46,147.45,193.9]
[1751794993244,16.16905988,147.46,147.45,193.9]
[1751794996146,11.37094146,147.46,147.45,193.9]
[1751794996443,16.16970174,147.46,147.45,193.9]
[1751795002150,16.17089313,147.46,147.45,193.9]
[1751795005251,8.85396596,147.46,147.45,193.9]
[1751795005451,16.17280357,147.46,147.45,193.9]
[1751795007648,21.05078995,147.46,147.45,200.6803]
[1751795008852,21.05078995,147.46,147.45,193.9]
[1751795009656,16.17280357,147.46,147.45,193.9]
[1751795030779,16.17280357,147.46,147.45,196.2528781]
[1751795037989,16.17280357,147.46,147.45,193.9]
[1751795039293,13.65446229,147.46,147.45,193.9]
[1751795039591,13.65446229,147.46,147.45,200.6803]
[1751795039989,8.85396596,147.46,147.45,200.6803]
[1751795044599,13.6573208,147.46,147.45,200.6803]
[1751795045197,16.17895366,147.46,147.45,200.6803]
[1751795045394,16.16732701,147.46,147.45,200.6803]
[1751795047001,20.89292994,147.46,147.45,200.6803]
[1751795048298,18.37129708,147.46,147.45,200.6803]
[1751795048600,20.88971129,147.46,147.45,200.6803]
[1751795049204,20.88971129,147.46,147.45,203.0331781]
[1751795055010,20.88971129,147.46,147.45,196.2528781]
[1751795055604,20.88971129,147.46,147.45,193.9]
[1751795057014,16.16410836,147.46,147.45,193.9]
[1751795059317,16.16410836,147.46,147.45,200.6803]
[1751795061617,16.16410836,147.46,147.45,193.9]
[1751795063111,13.64569415,147.46,147.45,193.9]
[1751795063318,16.16249589,147.46,147.45,193.9]
[1751795069731,22.94229589,147.46,147.45,193.9]
[1751795070229,27.87764445,147.46,147.45,193.9]
[1751795073431,27.87764445,147.46,147.44,193.82]
[1751795073632,16.16249589,147.45,147.44,193.82]
[1751795075436,13.99458608,147.45,147.44,193.82]
[1751795075637,16.50625801,147.45,147.44,193.82]
[1751795076036,16.50648289,147.45,147.44,193.82]
[1751795079940,16.50648289,147.45,147.44,196.17327336]
[1751795090445,16.5155052,147.45,147.44,196.17327336]
[1751795097945,16.50674512,147.45,147.44,196.17327336]
[1751795100347,23.28704512,147.45,147.44,196.17327336]
[1751795102048,23.28704512,147.45,147.44,193.82]
[1751795105353,28.47860264,147.45,147.44,193.82]
[1751795107357,23.28704512,147.45,147.44,193.82]
[1751795107553,23.30885509,147.45,147.44,193.82]
[1751795112459,23.30885509,147.45,147.43,48.17314944]
[1751795112759,6.7803,147.45,147.44,193.8]
[1751795112960,23.4813382,147.45,147.44,193.8]
[1751795113461,23.48148516,147.45,147.44,193.8]
[1751795119169,20.96718574,147.45,147.44,193.8]
[1751795119368,15.79687344,147.45,147.44,193.8]
[1751795121570,6.7803,147.45,147.44,193.8]
[1751795126575,9.29351911,147.45,147.44,193.8]
[1751795126873,14.46163944,147.45,147.44,193.8]
[1751795127171,7.68133944,147.45,147.22,391.9536]
[1751795127375,2.35314944,147.42,147.39,45.74]
[1751795127571,7.68133944,147.41,147.4,193.78]
[1751795127876,12.87338344,147.41,147.4,193.78]
[1751795128576,19.65548344,147.41,147.4,193.78]
[1751795129681,14.46343944,147.41,147.4,193.78]
[1751795131889,7.68133944,147.41,147.4,196.13461437]
[1751795133190,16.69786506,147.41,147.4,196.13461437]
[1751795133590,16.69786506,147.41,147.4,202.91721437]
[1751795148402,7.68133944,147.41,147.4,202.91721437]
[1751795149501,7.68133944,147.41,147.4,196.13461437]
[1751795151205,7.68133944,147.41,147.4,196.13412956]
[1751795151506,16.83817479,147.41,147.4,196.13412956]
[1751795153104,9.15683535,147.41,147.4,196.13412956]
[1751795153305,17.30297344,147.41,147.4,196.13412956]
[1751795153506,12.17065287,147.41,147.4,196.13412956]
[1751795153700,17.30337019,147.41,147.4,196.13412956]
[1751795155205,12.17065287,147.41,147.4,196.13412956]
[1751795156605,12.17065287,147.41,147.4,202.91672956]
[1751795157407,17.30408365,147.41,147.4,202.91672956]
[1751795161011,17.30408365,147.41,147.4,193.78]
[1751795161506,24.08618365,147.41,147.4,193.78]
[1751795161700,17.30408365,147.41,147.4,193.78]
[1751795162511,17.30408365,147.41,147.4,200.5626]
[1751795164009,17.30408365,147.41,147.4,193.78]
[1751795164710,17.30917293,147.41,147.4,193.78]
[1751795165510,17.30917293,147.41,147.4,200.5626]
[1751795165812,17.30917293,147.41,147.4,193.78]
[1751795166111,24.09127293,147.41,147.4,193.78]
[1751795168112,6.7826,147.4,147.39,45.74]
[1751795168314,24.09177293,147.4,147.39,239.54]
[1751795169712,24.09177293,147.4,147.39,45.74]
[1751795169913,24.09177293,147.4,147.39,239.54]
[1751795170413,24.09177293,147.4,147.39,45.74]
[1751795170613,24.09177293,147.4,147.39,239.54]
[1751795174216,28.89458774,147.4,147.39,45.74]
[1751795174512,28.89458774,147.4,147.39,239.54]
[1751795174714,38.41430299,147.4,147.39,239.54]
[1751795176317,38.41430299,147.4,147.39,193.8]
[1751795176818,38.28344688,147.4,147.39,193.8]
[1751795177912,19.60689628,147.4,147.39,193.8]
[1751795178117,6.7832,147.39,147.37,2.35412956]
[1751795178312,17.24763395,147.38,147.37,2.35412956]
[1751795178518,17.24763395,147.38,147.37,196.15412956]
[1751795179517,24.03113395,147.38,147.37,2.35412956]
[1751795179815,24.03113395,147.38,147.37,196.15530817]
[1751795180120,17.24763395,147.38,147.37,196.15530817]
[1751795181326,24.03113395,147.38,147.37,196.15530817]
[1751795182621,24.03113395,147.38,147.37,193.82]
[1751795183624,24.02857307,147.38,147.37,193.82]
[1751795191234,17.24507307,147.38,147.37,202.95930817]
[1751795191537,8.1333393,147.38,147.37,202.95930817]
[1751795195535,5.10094139,147.38,147.37,202.95930817]
[1751795195737,16.29403237,147.43,147.4,6.7823]
[1751795195935,9.09533065,147.42,147.41,196.17530817]
[1751795196440,9.09533065,147.42,147.41,202.95740817]
[1751795199341,9.09533065,147.42,147.41,196.17530817]
[1751795199641,9.09533065,147.42,147.41,193.82]
[1751795205939,9.09533065,147.42,147.41,196.17530817]
[1751795207645,17.13445328,147.42,147.41,196.17530817]
[1751795208145,26.64708565,147.42,147.41,196.17530817]
[1751795210555,17.13445328,147.42,147.41,196.17530817]
[1751795221065,14.17830983,147.42,147.41,196.17530817]
[1751795221367,17.13164898,147.42,147.41,196.17530817]
[1751795226876,17.13379526,147.42,147.41,196.17530817]
[1751795227172,8.03846461,147.42,147.41,196.17530817]
[1751795228074,17.20209846,147.42,147.41,196.17530817]
[1751795239078,17.20209846,147.42,147.41,202.95740817]
[1751795239883,17.20209846,147.42,147.41,202.95587428]
[1751795244088,14.24661303,147.42,147.41,202.95587428]
[1751795244281,9.16363385,147.42,147.41,202.95587428]
[1751795244483,17.21379096,147.42,147.41,202.95587428]
[1751795250590,8.05015711,147.42,147.41,202.95587428]
[1751795251096,8.05015711,147.42,147.41,202.95516056]
[1751795251994,6.7795,147.47,147.44,6.7807]
[1751795252197,9.17429228,147.46,147.45,196.09306056]
[1751795254296,15.95409228,147.46,147.45,196.09306056]
[1751795257600,9.17429228,147.46,147.45,196.09306056]
[1751795263914,16.89136719,147.46,147.45,196.09306056]
[1751795268417,23.67116719,147.46,147.45,196.09306056]
[1751795268917,20.79282573,147.46,147.45,196.09306056]
[1751795269215,23.67037355,147.46,147.45,196.09306056]
[1751795269811,16.89057355,147.46,147.45,196.09306056]
[1751795275818,16.89057355,147.46,147.45,193.74]
[1751795276219,16.89515163,147.46,147.45,193.74]
[1751795276618,23.67495163,147.46,147.45,193.74]
[1751795280717,20.79740381,147.46,147.45,193.74]
[1751795280924,23.66680088,147.46,147.45,193.74]
[1751795281221,23.66848546,147.46,147.45,193.74]
[1751795283625,16.88868546,147.46,147.45,193.74]
[1751795284519,16.88868546,147.46,147.4,2.2762]
[1751795284727,11.85673892,147.48,147.36,45.72]
[1751795284728,2.35497298,147.42,147.36,45.72]
[1751795284919,7.70734669,147.41,147.36,45.72]
[1751795285118,2.35497298,147.38,147.36,242.32]
[1751795285323,2.8748802,147.37,147.36,45.72]
[1751795285522,7.70471149,147.37,147.36,45.72]
[1751795285724,26.02661669,147.37,147.36,45.72]
[1751795286023,26.02679413,147.37,147.36,242.34]
[1751795286423,6.7847,147.36,147.35,196.62]
[1751795286725,23.67121773,147.36,147.35,196.6]
[1751795286926,16.88651773,147.36,147.35,196.6]
[1751795287219,7.70488893,147.36,147.35,196.6]
[1751795288424,16.85507673,147.36,147.35,196.6]
[1751795289427,13.98019653,147.36,147.32,45.72]
[1751795289620,7.70621425,147.35,147.33,198.9162764]
[1751795289824,9.1402764,147.37,147.33,205.7017764]
[1751795289825,4.83000873,147.34,147.33,205.7017764]
[1751795290025,2.3562764,147.37,147.33,205.7017764]
[1751795290225,17.28684721,147.36,147.33,205.7017764]
[1751795290428,5.20208648,147.35,147.33,205.7017764]
[1751795290725,2.3562764,147.37,147.33,205.7017764]
[1751795290926,17.26068624,147.36,147.33,205.7017764]
[1751795291120,5.19926349,147.35,147.33,205.7017764]
[1751795291317,2.3562764,147.38,147.33,205.7017764]
[1751795291518,2.3562764,147.34,147.32,45.72]
[1751795291824,2.3562764,147.34,147.23,62.0]
[1751795291825,2.35814805,147.33,147.25,2.35814805]
[1751795292126,2.35814805,147.3,147.26,197.96]
[1751795292328,16.25374776,147.33,147.27,2.35869829]
[1751795292624,17.23782676,147.32,147.27,197.94]
[1751795292929,19.57473037,147.31,147.27,2.35869829]
[1751795293123,7.54671779,147.3,147.27,197.98]
[1751795293327,2.35869829,147.28,147.25,197.96]
[1751795293521,2.35869829,147.28,147.24,49.49869829]
[1751795293725,6.7882,147.28,147.25,198.0]
[1751795294333,10.74083117,147.33,147.25,201.68613117]
[1751795294533,17.11049075,147.32,147.25,201.68613117]
[1751795294833,5.12021395,147.31,147.25,201.68613117]
[1751795295029,5.12021395,147.3,147.25,201.68613117]
[1751795295230,3.68613117,147.31,147.25,198.0]
[1751795295429,5.11494032,147.3,147.25,198.0]
[1751795295630,3.68613117,147.31,147.25,198.0]
[1751795295931,6.7878,147.29,147.25,198.0]
[1751795296131,10.74083117,147.33,147.25,201.68613117]
[1751795296331,17.06888012,147.32,147.25,201.68613117]
[1751795296533,10.74083117,147.33,147.25,201.68613117]
[1751795296534,5.11494419,147.31,147.25,201.68613117]
[1751795296834,11.90244419,147.3,147.25,208.47523117]
[1751795297034,6.7875,147.3,147.25,208.47523117]
[1751795297230,3.68550041,147.32,147.25,204.7891]
[1751795297434,5.10697422,147.31,147.25,198.0]
[1751795297638,5.00708789,147.3,147.24,47.14]
[1751795297832,3.68550041,147.3,147.24,245.24]
[1751795298038,3.68550041,147.28,147.2,47.16]
[1751795298237,8.38000041,147.27,147.2,47.16]
[1751795298432,8.38000041,147.27,147.21,198.2]
[1751795299538,8.38000041,147.27,147.2,47.16]
[1751795299539,8.38000041,147.27,147.22,198.18]
[1751795299738,6.7898,147.25,147.22,198.18]
[1751795300135,6.7904,147.23,147.22,198.18]
[1751795300332,3.68550041,147.25,147.2,47.16]
[1751795300730,3.68550041,147.26,147.2,53.9518]
[1751795300936,4.99318247,147.25,147.2,50.84550041]
[1751795301136,6.79,147.24,147.2,50.84550041]
[1751795301341,3.68550041,147.26,147.2,47.16]
[1751795302228,4.98914947,147.25,147.2,47.16]
[1751795302432,3.68550041,147.26,147.2,47.16]
[1751795302629,6.7905,147.23,147.2,47.16]
[1751795302940,3.68550041,147.26,147.2,47.16]
[1751795303136,4.98557615,147.25,147.2,47.16]
[1751795303337,6.7913,147.21,147.2,47.16]
[1751795303637,2.2115,147.26,147.2,47.16]
[1751795303936,14.25417632,147.25,147.2,47.16]
[1751795304137,4.91602108,147.24,147.2,47.16]
[1751795304327,3.68550041,147.25,147.2,47.16]
[1751795304532,4.91277832,147.24,147.2,47.16]
[1751795304734,5.89700041,147.26,147.2,47.16]
[1751795304935,4.91272564,147.25,147.2,47.16]
[1751795305135,4.91272564,147.24,147.2,47.16]
[1751795305336,5.89700041,147.26,147.2,47.16]
[1751795305637,4.9100616,147.25,147.2,47.16]
[1751795305838,4.9100616,147.24,147.2,47.16]
[1751795306137,5.89700041,147.26,147.2,47.16]
[1751795306338,5.89700041,147.26,147.2,53.9516]
[1751795306339,6.7902,147.24,147.2,53.9516]
[1751795306640,2.2115,147.26,147.2,47.16]
[1751795306841,6.7909,147.22,147.2,47.16]
[1751795307241,5.89700041,147.26,147.2,47.16]
[1751795307539,7.69362016,147.25,147.2,47.16]
[1751795307741,4.90665566,147.24,147.2,47.16]
[1751795307941,4.90665566,147.23,147.2,47.16]
[1751795308141,6.7913,147.21,147.2,47.16]
[1751795308532,4.8933466,147.21,147.17,199.85556926]
[1751795308738,6.7927,147.18,147.17,1.67556926]
[1751795311236,11.67990286,147.18,147.17,1.67556926]
[1751795312040,20.91989343,147.18,147.17,1.67556926]
[1751795312531,20.91989343,147.18,147.17,6.926e-05]
[1751795312735,27.38788332,147.18,147.17,6.926e-05]
[1751795312934,84.00328358,147.18,147.07,2.3495]
[1751795313137,3.69072976,147.13,147.08,198.08]
[1751795313333,14.12719343,147.12,147.06,48.87556926]
[1751795313546,4.88720286,147.11,147.06,48.87556926]
[1751795313739,4.88720286,147.1,147.06,48.87556926]
[1751795313945,8.47992976,147.15,147.07,202.37072976]
[1751795314246,16.83499486,147.14,147.07,202.37072976]
[1751795314542,16.83499486,147.13,147.07,202.37072976]
[1751795314744,8.47992976,147.15,147.09,3.69072976]
[1751795314745,4.83594225,147.12,147.09,3.69072976]
[1751795314947,4.7892,147.15,147.09,3.69072976]
[1751795315147,6.7954,147.13,147.09,10.48742976]
[1751795315335,4.83294754,147.12,147.09,10.48742976]
[1751795315639,6.7954,147.13,147.09,10.48742976]
[1751795315838,4.83120662,147.12,147.1,6.7964]
[1751795316044,6.7954,147.13,147.11,198.84]
[1751795316344,4.83120662,147.12,147.11,198.8]
[1751795316841,11.62670662,147.12,147.11,198.8]
[1751795317943,4.83120662,147.12,147.11,198.8]
[1751795319145,9.40810026,147.18,147.11,246.02]
[1751795319345,11.87938343,147.17,147.13,3.69368973]
[1751795319646,6.7944,147.15,147.11,256.50948973]
[1751795320142,6.7947,147.14,147.11,249.71368973]
[1751795320546,62.58158999,147.19,147.11,249.71368973]
[1751795320845,11.90620758,147.18,147.11,249.71368973]
[1751795321045,11.90620758,147.17,147.11,249.71368973]
[1751795321344,6.7945,147.15,147.11,256.50928973]
[1751795322846,6.7946,147.14,147.11,256.50928973]
[1751795323240,6.7946,147.14,147.11,249.71368973]
[1751795324545,6.7946,147.14,147.11,256.50958973]
[1751795324746,9.40810026,147.18,147.11,249.71368973]
[1751795324946,11.9713576,147.17,147.11,249.71368973]
[1751795325148,11.9713576,147.16,147.11,249.71368973]
[1751795325347,11.9713576,147.15,147.11,249.71368973]
[1751795325548,11.9713576,147.14,147.11,249.71368973]
[1751795325748,9.40810026,147.18,147.11,256.50958973]
[1751795325950,11.97136666,147.17,147.11,256.50958973]
[1751795326147,11.97136666,147.16,147.11,256.50958973]
[1751795326347,11.97136666,147.15,147.11,256.50958973]
[1751795326550,2.77428756,147.14,147.11,256.50958973]
[1751795326749,6.7941,147.15,147.12,6.7954]
[1751795326944,2.77995648,147.14,147.11,249.71368973]
[1751795327149,6.7941,147.15,147.11,249.71368973]
[1751795327353,11.99333402,147.14,147.11,249.71368973]
[1751795327551,2.78011273,147.13,147.11,249.71368973]
[1751795327748,9.40810026,147.18,147.12,6.7954]
[1751795327952,11.95360884,147.17,147.12,6.7954]
[1751795328152,18.74760884,147.16,147.12,6.7954]
[1751795328349,11.95360884,147.15,147.12,6.7954]
[1751795328555,2.78287094,147.14,147.12,6.7954]
[1751795328750,2.78287094,147.14,147.11,249.71368973]
[1751795328751,9.40810026,147.18,147.13,3.69106053]
[1751795328955,11.96842028,147.17,147.14,198.44]
[1751795329255,11.96842028,147.16,147.14,198.44]
[1751795329455,11.96842028,147.15,147.14,198.44]
[1751795329656,11.96842028,147.15,147.14,205.2345]
[1751795330556,11.96842028,147.15,147.14,208.92435322]
[1751795331153,16.80560506,147.15,147.14,208.92435322]
[1751795331859,16.80560506,147.15,147.14,205.2345]
[1751795332060,16.80560506,147.15,147.14,208.92435322]
[1751795336158,26.21370532,147.15,147.14,208.92435322]
[1751795336360,16.80560506,147.15,147.14,208.92435322]
[1751795338958,1e-08,147.17,147.16,6.7936]
[1751795339262,12.68350983,147.22,147.16,47.42]
[1751795339561,2.4005,147.23,147.16,47.42]
[1751795339753,4.82732633,147.22,147.17,3.6889394]
[1751795339951,2.4005,147.23,147.18,198.02]
[1751795340161,4.82731543,147.22,147.19,3.6889394]
[1751795340461,12.68350983,147.25,147.19,3.6889394]
[1751795340657,6.7904,147.23,147.21,3.6889394]
[1751795340859,12.68350983,147.26,147.22,198.08]
[1751795341061,3.6889394,147.3,147.23,3.6889394]
[1751795341062,4.85554998,147.25,147.23,3.6889394]
[1751795341363,16.37215557,147.26,147.22,198.08]
[1751795341562,4.85729329,147.25,147.22,198.08]
[1751795341858,6.7904,147.23,147.22,198.08]
[1751795342061,3.68864574,147.24,147.19,198.24]
[1751795342366,16.37338443,147.24,147.18,198.22]
[1751795342554,6.7921,147.2,147.18,198.22]
[1751795343158,6.7922,147.19,147.18,198.22]
[1751795345569,6.7927,147.18,147.17,245.6]
[1751795345767,6.7927,147.18,147.17,47.42]
[1751795350972,9.53852267,147.18,147.17,47.42]
[1751795351371,6.7927,147.18,147.17,47.42]
[1751795353669,6.7927,147.18,147.17,245.26]
[1751795354474,9.54054373,147.18,147.17,245.26]
[1751795356178,2.74784373,147.18,147.17,245.26]
[1751795356677,6.7923,147.19,147.17,245.26]
[1751795357077,6.7916,147.21,147.18,6.7924]
[1751795357281,6.7916,147.21,147.19,197.72]
[1751795357976,6.7918,147.2,147.19,197.72]
[1751795358278,9.54192148,147.2,147.19,197.72]
[1751795358476,18.40110717,147.2,147.19,197.72]
[1751795359276,23.02286691,147.2,147.19,197.72]
[1751795360280,9.54192148,147.2,147.19,197.72]
[1751795361280,23.03071932,147.2,147.19,197.72]
[1751795364981,23.03890319,147.2,147.19,197.72]
[1751795365983,2.75830535,147.2,147.19,197.72]
[1751795368279,2.75967806,147.2,147.19,197.72]
[1751795369383,2.75967806,147.2,147.19,208.20133707]
[1751795370182,11.65501062,147.2,147.17,47.42]
[1751795370382,16.30737281,147.19,147.18,197.26]
[1751795370578,16.30724121,147.19,147.18,197.26]
[1751795371381,6.7927,147.18,147.17,47.42]
[1751795371576,23.09994121,147.18,147.17,244.64]
[1751795376502,23.09994121,147.18,147.17,244.5]
[1751795376703,23.09994121,147.18,147.17,47.42]
[1751795376899,23.09994121,147.18,147.17,244.48]
[1751795378102,23.09994121,147.18,147.17,47.42]
[1751795378297,16.30724121,147.18,147.17,244.5]
[1751795378498,7.4120098,147.18,147.17,244.5]
[1751795379000,23.10286454,147.18,147.17,244.5]
[1751795379195,16.31016454,147.18,147.17,244.5]
[1751795379401,7.4120098,147.18,147.17,244.5]
[1751795379599,7.4120098,147.18,147.17,251.2931]
[1751795380501,7.41695864,147.18,147.17,251.2931]
[1751795381702,7.41705548,147.18,147.17,251.2931]
[1751795382001,4.65236219,147.18,147.17,251.2931]
[1751795382304,7.41726682,147.18,147.17,251.2931]
[1751795382704,4.65236219,147.18,147.17,251.2931]
[1751795382905,7.41738547,147.18,147.17,251.2931]
[1751795383505,4.43529913,147.24,147.17,251.2931]
[1751795383704,16.62881008,147.23,147.17,251.2931]
[1751795383894,6.7916,147.21,147.17,251.2931]
[1751795384100,16.62881008,147.2,147.17,251.2931]
[1751795384299,7.72556273,147.19,147.17,251.2931]
[1751795384500,6.7916,147.21,147.18,10.48331004]
[1751795384700,16.64393376,147.2,147.19,196.96]
[1751795385106,23.43573376,147.2,147.19,196.96]
[1751795387408,28.36431154,147.2,147.19,196.96]
[1751795387709,23.43573376,147.2,147.19,196.96]
[1751795389002,28.36476933,147.2,147.19,196.96]
[1751795389407,28.36993427,147.2,147.19,196.96]
[1751795392106,28.39026057,147.2,147.19,196.96]
[1751795392507,6.7927,147.18,147.17,47.42]
[1751795392710,23.462125,147.18,147.17,244.16]
[1751795393411,23.462125,147.18,147.17,244.12]
[1751795394204,23.462125,147.18,147.17,47.42]
[1751795394409,23.462125,147.18,147.17,244.1]
[1751795395014,23.462125,147.18,147.17,47.42]
[1751795395206,23.462125,147.18,147.17,244.08]
[1751795395406,23.45996021,147.18,147.17,244.08]
[1751795397111,23.45996021,147.18,147.17,196.66]
[1751795398712,6.7938,147.16,147.13,57.32531004]
[1751795399008,4.95942017,147.15,147.14,196.62]
[1751795399202,4.95942017,147.15,147.14,203.4145]
[1751795400011,4.95942017,147.15,147.14,6.7945]